bitfinex-derivatives/quotes_BTCF0:USTF0_20241022
["timestamp","ask_amount","ask_price","bid_price","bid_amount"]
[1729617401991,0.3608,67240.0,67239.0,0.00765307]
[1729617402196,0.3608,67240.0,67239.0,0.01065307]
[1729617409302,0.3608,67240.0,67239.0,0.01065295]
[1729617411707,0.3608,67240.0,67239.0,0.12065295]
[1729617412610,0.3608,67240.0,67239.0,0.190402]
[1729617412810,0.3608,67240.0,67239.0,0.19505495]
[1729617413115,0.3608,67240.0,67239.0,0.16883321]
[1729617413311,0.3608,67240.0,67239.0,0.23123321]
[1729617415813,0.3608,67240.0,67239.0,0.15683121]
[1729617416011,0.4708,67240.0,67239.0,0.09443121]
[1729617417016,0.5309,67240.0,67239.0,0.09443121]
[1729617417419,0.5309,67240.0,67239.0,0.01065295]
[1729617420426,0.5309,67240.0,67239.0,0.006]
[1729617420610,0.5309,67240.0,67239.0,0.01065307]
[1729617421322,0.5309,67240.0,67239.0,0.006]
[1729617421523,0.5309,67240.0,67239.0,0.01065312]
[1729617422715,0.605301,67240.0,67239.0,0.006]
[1729617422918,0.715301,67240.0,67239.0,0.006]
[1729617423110,1.522261,67240.0,67239.0,0.006]
[1729617423312,0.074405,67236.0,67235.0,0.07411433]
[1729617423619,0.074405,67236.0,67227.0,0.08846928]
[1729617423620,0.074414,67228.0,67227.0,0.08846928]
[1729617423926,0.074416,67226.0,67225.0,0.00223109]
[1729617424221,0.074416,67226.0,67213.0,0.10321416]
[1729617424522,0.17,67215.0,67214.0,0.00465468]
[1729617424913,0.244429,67215.0,67214.0,0.00465468]
[1729617426313,0.244429,67215.0,67214.0,0.00465471]
[1729617426513,0.245429,67215.0,67214.0,0.01065471]
[1729617427519,0.246429,67215.0,67214.0,0.01665471]
[1729617427920,0.246429,67215.0,67214.0,0.012]
[1729617429222,0.245429,67215.0,67214.0,0.006]
[1729617429424,0.246429,67215.0,67214.0,0.011]
[1729617431023,0.002,67215.0,67214.0,0.0156547]
[1729617431231,0.002,67215.0,67214.0,0.0900847]
[1729617431420,0.002,67215.0,67214.0,0.2143847]
[1729617432837,0.002,67215.0,67214.0,0.2772847]
[1729617433728,0.002,67215.0,67214.0,0.2028547]
[1729617434331,0.002,67215.0,67214.0,0.2772847]
[1729617434729,0.002,67215.0,67214.0,0.2028547]
[1729617434935,0.172,67215.0,67214.0,0.2028547]
[1729617435135,0.172,67215.0,67214.0,0.0599698]
[1729617435136,0.246429,67215.0,67214.0,0.0599698]
[1729617435437,0.246429,67215.0,67214.0,0.011]
[1729617438537,0.26852835,67215.0,67214.0,0.011]
[1729617439442,0.074437,67208.0,67206.0,0.074438]
[1729617439638,0.5308,67207.0,67206.0,0.074438]
[1729617439843,0.5308,67207.0,67205.0,0.02249534]
[1729617439844,0.074439,67206.0,67205.0,0.02249534]
[1729617440143,0.53184001,67207.0,67203.0,0.074442]
[1729617440347,0.17,67204.0,67201.0,0.1237]
[1729617440541,0.17,67204.0,67201.0,0.14576579]
[1729617440933,0.17,67204.0,67201.0,0.22020979]
[1729617441139,0.17,67204.0,67202.0,0.074442]
[1729617441441,0.3608,67207.0,67201.0,0.14576579]
[1729617441442,0.605237,67207.0,67201.0,0.14576579]
[1729617441944,0.5308,67207.0,67201.0,0.22020979]
[1729617442140,0.3608,67207.0,67202.0,0.244442]
[1729617442444,0.3618,67207.0,67203.0,0.005]
[1729617442641,0.001,67204.0,67203.0,0.005]
[1729617442845,0.001,67204.0,67203.0,0.0443151]
[1729617443237,0.001,67204.0,67202.0,0.244442]
[1729617443433,0.244434,67210.0,67202.0,0.249442]
[1729617443742,0.001,67207.0,67204.0,0.04431638]
[1729617443941,0.17,67205.0,67204.0,0.04431638]
[1729617444146,0.17,67205.0,67203.0,0.00965539]
[1729617444341,0.001,67204.0,67203.0,0.00965539]
[1729617444543,0.001,67204.0,67203.0,0.005]
[1729617445347,0.001,67204.0,67203.0,0.00965527]
[1729617445944,0.001,67204.0,67203.0,0.00465527]
[1729617446137,0.001,67204.0,67203.0,0.06376893]
[1729617446342,0.17,67205.0,67204.0,0.005]
[1729617446639,0.17,67205.0,67204.0,0.00965526]
[1729617447241,0.17,67205.0,67204.0,0.00465526]
[1729617448243,0.171,67205.0,67204.0,0.00965526]
[1729617449346,0.172,67205.0,67204.0,0.01665526]
[1729617451455,0.24644,67205.0,67204.0,0.01665526]
[1729617452359,0.60724,67205.0,67204.0,0.01665526]
[1729617452556,0.5328,67205.0,67204.0,0.01665526]
[1729617454465,0.3628,67205.0,67204.0,0.01665526]
[1729617454653,0.3628,67205.0,67204.0,0.09109626]
[1729617456460,0.002,67205.0,67204.0,0.165295]
[1729617457462,0.002,67205.0,67204.0,0.25084085]
[1729617457764,0.002,67205.0,67204.0,0.17662444]
[1729617457960,0.435225,67218.0,67204.0,0.62302444]
[1729617458265,0.435226,67218.0,67217.0,0.05936638]
[1729617458460,0.605226,67218.0,67217.0,0.05936638]
[1729617459260,0.3608,67218.0,67217.0,0.244426]
[1729617459464,0.3608,67218.0,67217.0,0.32328845]
[1729617459658,0.3648,67218.0,67217.0,0.33404737]
[1729617460063,0.3688,67218.0,67217.0,0.33404737]
[1729617460558,0.3688,67218.0,67217.0,0.40815179]
[1729617461063,0.3648,67218.0,67217.0,0.32623063]
[1729617461462,0.3648,67218.0,67217.0,0.25208048]
[1729617461655,0.3648,67218.0,67217.0,0.2746765]
[1729617462266,0.3608,67218.0,67217.0,0.2746765]
[1729617462460,0.3608,67218.0,67217.0,0.2776765]
[1729617465261,0.3608,67218.0,67217.0,0.35182665]
[1729617465468,0.3608,67218.0,67217.0,0.2776765]
[1729617467166,0.3608,67218.0,67217.0,0.1532905]
[1729617467167,0.5308,67218.0,67217.0,0.1532905]
[1729617467566,0.5308,67218.0,67217.0,0.0332505]
[1729617468270,0.5308,67218.0,67217.0,0.03325034]
[1729617470071,0.3608,67218.0,67217.0,0.03325034]
[1729617475369,0.3608,67218.0,67217.0,0.02859602]
[1729617475674,0.3608,67218.0,67217.0,0.03325045]
[1729617476470,0.17,67221.0,67217.0,0.03325045]
[1729617476671,0.17,67221.0,67218.0,0.00465443]
[1729617476873,0.17,67221.0,67219.0,0.00465443]
[1729617477068,0.17,67221.0,67220.0,0.06390644]
[1729617477264,0.17,67221.0,67220.0,0.00465443]
[1729617477767,0.17,67221.0,67220.0,0.06390454]
[1729617478073,0.17,67221.0,67220.0,0.05925011]
[1729617478275,0.11,67221.0,67220.0,0.05925011]
[1729617478875,0.11,67221.0,67219.0,0.05925011]
[1729617479764,0.11,67221.0,67220.0,0.05925011]
[1729617479968,0.11,67221.0,67215.0,0.13203262]
[1729617480168,0.11,67221.0,67216.0,0.00465437]
[1729617480376,0.11,67221.0,67217.0,0.00465437]
[1729617480573,0.184422,67221.0,67219.0,0.05926285]
[1729617480874,0.545223,67220.0,67219.0,0.05926586]
[1729617481175,0.074433,67211.0,67210.0,0.07415015]
[1729617481371,0.4708,67211.0,67208.0,0.07415015]
[1729617481571,0.11,67209.0,67206.0,0.14206591]
[1729617481876,0.074437,67207.0,67206.0,0.14206591]
[1729617482171,0.074437,67207.0,67206.0,0.14672102]
[1729617482779,0.074437,67207.0,67206.0,0.02668102]
[1729617483376,0.074437,67207.0,67206.0,0.00465511]
[1729617483871,0.075437,67207.0,67206.0,0.01365511]
[1729617484067,0.185437,67207.0,67206.0,0.01365511]
[1729617484267,0.186437,67207.0,67206.0,0.01965511]
[1729617484976,0.186437,67207.0,67206.0,0.01965535]
[1729617485275,0.186437,67207.0,67206.0,0.015]
[1729617485471,0.296437,67207.0,67206.0,0.015]
[1729617487275,0.222,67207.0,67195.0,0.08863271]
[1729617487477,0.07445,67196.0,67195.0,0.08863271]
[1729617487779,0.07445,67196.0,67195.0,0.09328868]
[1729617488174,0.36184001,67197.0,67195.0,0.09328868]
[1729617488379,0.3608,67197.0,67196.0,0.00465597]
[1729617489081,0.3608,67197.0,67196.0,0.00465595]
[1729617490084,0.3618,67197.0,67196.0,0.08010595]
[1729617490282,0.3618,67197.0,67196.0,0.00565595]
[1729617490983,0.3628,67197.0,67196.0,0.00565595]
[1729617491779,0.3628,67197.0,67196.0,0.08010595]
[1729617491985,0.5308,67211.0,67196.0,0.54275595]
[1729617492183,0.074438,67207.0,67202.0,0.17]
[1729617492384,0.074438,67207.0,67205.0,0.17]
[1729617492882,0.074438,67207.0,67206.0,0.00465527]
[1729617493185,0.074438,67207.0,67205.0,0.17]
[1729617493685,0.075438,67207.0,67205.0,0.17]
[1729617494379,0.001,67207.0,67205.0,0.17]
[1729617494587,0.001,67207.0,67206.0,0.07909427]
[1729617495590,0.002,67207.0,67206.0,0.08209427]
[1729617496083,0.001,67207.0,67206.0,0.08209427]
[1729617496283,0.002,67207.0,67206.0,0.08409427]
[1729617496693,0.002,67207.0,67206.0,0.00965527]
[1729617496879,0.002,67207.0,67206.0,0.12961527]
[1729617497483,0.002,67207.0,67206.0,0.00965527]
[1729617498388,0.076437,67207.0,67206.0,0.00965527]
[1729617499389,0.002,67207.0,67206.0,0.00965527]
[1729617500285,0.002,67207.0,67206.0,0.08409427]
[1729617500481,0.002,67207.0,67206.0,0.00965527]
[1729617503797,0.002,67207.0,67206.0,0.00965509]
[1729617504505,0.002,67207.0,67206.0,0.08409409]
[1729617506292,0.002,67207.0,67206.0,0.00965509]
[1729617506698,0.002,67207.0,67206.0,0.00965508]
[1729617507290,0.002,67207.0,67206.0,0.005]
[1729617507488,0.002,67207.0,67206.0,0.00965508]
[1729617510896,0.07639701,67207.0,67206.0,0.005]
[1729617511102,0.15083401,67207.0,67206.0,0.00965526]
[1729617511906,0.15083401,67207.0,67206.0,0.00965542]
[1729617512299,0.07639701,67207.0,67206.0,0.00965542]
[1729617512606,0.07639701,67207.0,67206.0,0.00865542]
[1729617512803,0.07639701,67207.0,67206.0,0.00765542]
[1729617513805,0.07639701,67207.0,67206.0,0.002]
[1729617513806,0.07539701,67207.0,67206.0,0.002]
[1729617514106,0.07639701,67207.0,67206.0,0.003]
[1729617514411,0.07539701,67207.0,67206.0,0.003]
[1729617515007,0.07539701,67207.0,67206.0,0.00765526]
[1729617518510,0.18539701,67207.0,67206.0,0.00765526]
[1729617520711,0.18539701,67207.0,67206.0,0.08182323]
[1729617521416,0.18539701,67207.0,67206.0,0.00765526]
[1729617522501,0.18539701,67207.0,67206.0,0.003]
[1729617522706,0.18539701,67207.0,67206.0,0.00765531]
[1729617522901,0.18539701,67207.0,67206.0,0.003]
[1729617523108,0.18539701,67207.0,67206.0,0.00765531]
[1729617524211,0.18539701,67207.0,67206.0,0.08183849]
[1729617524414,0.25983401,67207.0,67206.0,0.0864894]
[1729617524610,0.25983401,67207.0,67206.0,0.0911447]
[1729617525017,0.25983401,67207.0,67206.0,0.0076553]
[1729617525311,0.25983401,67207.0,67206.0,0.003]
[1729617533512,0.18539701,67207.0,67206.0,0.0076553]
[1729617534722,0.18539701,67207.0,67206.0,0.00765532]
[1729617535016,0.18539701,67207.0,67206.0,0.003]
[1729617535520,0.18539701,67207.0,67206.0,0.00765526]
[1729617535721,0.25983401,67207.0,67206.0,0.00765526]
[1729617536717,0.25983401,67207.0,67206.0,0.16541961]
[1729617537020,0.25983401,67207.0,67206.0,0.09123907]
[1729617537610,0.25983401,67207.0,67206.0,0.00765526]
[1729617538423,0.25983401,67207.0,67206.0,0.08655796]
[1729617538617,0.25983401,67207.0,67206.0,0.09121326]
[1729617539725,0.25983401,67207.0,67206.0,0.09121325]
[1729617540127,0.14983401,67207.0,67206.0,0.09121325]
[1729617540426,0.25983401,67207.0,67206.0,0.09121325]
[1729617540912,0.25983401,67207.0,67206.0,0.09120804]
[1729617541318,0.25983401,67207.0,67206.0,0.08655275]
[1729617541518,0.25983401,67207.0,67206.0,0.08658024]
[1729617541820,0.25983401,67207.0,67206.0,0.003]
[1729617542423,0.36983401,67207.0,67206.0,0.003]
[1729617543322,0.36983401,67207.0,67206.0,0.06243271]
[1729617543521,0.36983401,67207.0,67206.0,0.003]
[1729617544227,0.39202065,67207.0,67206.0,0.003]
[1729617544825,0.17202065,67207.0,67206.0,0.003]
[1729617545034,0.39202065,67207.0,67206.0,0.003]
[1729617546228,0.17202065,67207.0,67206.0,0.003]
[1729617546433,0.07539701,67207.0,67206.0,0.113]
[1729617546632,0.07539701,67207.0,67206.0,0.187439]
[1729617546824,0.18539701,67207.0,67206.0,0.15171403]
[1729617547018,0.18539701,67207.0,67206.0,0.077439]
[1729617548725,0.18539701,67207.0,67206.0,0.15171403]
[1729617548928,0.18539701,67207.0,67206.0,0.24029586]
[1729617549130,0.18539701,67207.0,67206.0,0.16584599]
[1729617549336,0.18539701,67207.0,67206.0,0.16584623]
[1729617550238,0.07539701,67207.0,67206.0,0.27599631]
[1729617551038,0.07539701,67207.0,67206.0,0.1920943]
[1729617551541,0.07539701,67207.0,67206.0,0.13965474]
[1729617552038,0.07539701,67207.0,67206.0,0.13965453]
[1729617552239,0.07539701,67207.0,67206.0,0.22352135]
[1729617554131,0.07539701,67207.0,67206.0,0.13965453]
[1729617555432,0.07539701,67207.0,67206.0,0.13499944]
[1729617555627,0.07539701,67207.0,67206.0,0.13965444]
[1729617556350,0.07539701,67207.0,67206.0,0.21409344]
[1729617557041,0.07539701,67207.0,67206.0,0.66049344]
[1729617557241,0.00116,67215.0,67211.0,0.074433]
[1729617557431,0.3608,67221.0,67217.0,0.074426]
[1729617557746,0.3608,67221.0,67220.0,0.11]
[1729617557945,0.184419,67224.0,67220.0,0.114655]
[1729617558239,0.184419,67224.0,67221.0,0.004655]
[1729617558433,0.184419,67224.0,67222.0,0.004655]
[1729617558632,0.184419,67224.0,67223.0,0.004655]
[1729617559346,0.188419,67224.0,67223.0,0.004655]
[1729617560030,0.192419,67224.0,67223.0,0.004655]
[1729617560941,0.118,67224.0,67223.0,0.02699478]
[1729617561640,0.114,67224.0,67223.0,0.02699478]
[1729617561841,0.118,67224.0,67223.0,0.02699478]
[1729617562243,0.192419,67224.0,67223.0,0.02699478]
[1729617562833,0.118,67224.0,67223.0,0.02699478]
[1729617566441,0.118,67224.0,67223.0,0.02233978]
[1729617566632,0.118,67224.0,67223.0,0.00465408]
[1729617566833,0.118,67224.0,67221.0,0.1328109]
[1729617567035,0.074391,67250.0,67241.0,0.0744]
[1729617567234,0.0587,67257.0,67250.0,0.074389]
[1729617567235,0.0575,67257.0,67250.0,0.074389]
[1729617567433,0.00223121,67268.0,67258.0,0.074381]
[1729617567648,0.00223121,67268.0,67266.0,0.11]
[1729617567944,0.11223121,67268.0,67259.0,0.121]
[1729617568140,0.11,67260.0,67258.0,0.13273484]
[1729617568347,0.11,67260.0,67259.0,0.121]
[1729617570236,0.17,67263.0,67259.0,0.121]
[1729617570936,0.007,67260.0,67259.0,0.121]
[1729617571441,0.007,67260.0,67259.0,0.12565135]
[1729617571635,0.003,67260.0,67259.0,0.12565135]
[1729617572452,0.007,67260.0,67259.0,0.12565135]
[1729617572638,0.004,67260.0,67259.0,0.12565135]
[1729617573240,0.008,67260.0,67259.0,0.12565129]
[1729617573746,0.08233838,67260.0,67259.0,0.121]
[1729617573944,0.08233838,67260.0,67259.0,0.12565131]
[1729617574943,0.25233838,67260.0,67259.0,0.12565131]
[1729617575140,0.08233838,67260.0,67259.0,0.121]
[1729617575445,0.08233838,67260.0,67259.0,0.00465131]
[1729617575638,0.08233838,67260.0,67259.0,0.12429131]
[1729617575836,0.08233838,67260.0,67259.0,0.11964]
[1729617576034,0.08233838,67260.0,67259.0,0.19402]
[1729617578246,0.08233838,67260.0,67259.0,0.07438]
[1729617578541,0.08233838,67260.0,67259.0,0.19398]
[1729617581649,0.074381,67259.0,67255.0,0.1196]
[1729617581943,0.17,67256.0,67254.0,0.38261766]
[1729617582151,0.17,67256.0,67254.0,0.02181766]
[1729617582152,0.074384,67255.0,67254.0,0.02181766]
[1729617582343,0.074384,67255.0,67252.0,0.1196]
[1729617582741,0.17,67256.0,67252.0,0.1196]
[1729617583143,0.244384,67256.0,67252.0,0.1196]
[1729617583346,0.3608,67257.0,67252.0,0.1196]
[1729617583347,0.3608,67257.0,67254.0,0.17]
[1729617583753,0.004,67255.0,67254.0,0.11789917]
[1729617584046,0.004,67255.0,67252.0,0.074387]
[1729617584249,0.004,67256.0,67250.0,0.2896]
[1729617584250,0.008,67256.0,67250.0,0.2896]
[1729617584440,0.008,67256.0,67250.0,0.17]
[1729617584646,0.008,67256.0,67252.0,0.074387]
[1729617584849,0.004,67256.0,67255.0,0.074384]
[1729617585251,0.004,67256.0,67254.0,0.17]
[1729617585463,0.004,67256.0,67251.0,0.1196]
[1729617585947,0.004,67255.0,67254.0,0.17]
[1729617586353,0.004,67257.0,67254.0,0.17]
[1729617586554,0.008,67256.0,67254.0,0.17]
[1729617586966,0.004,67256.0,67254.0,0.17]
[1729617587149,0.004,67255.0,67254.0,0.17]
[1729617587349,0.008,67255.0,67254.0,0.17]
[1729617587650,0.004,67255.0,67254.0,0.17]
[1729617587850,0.004,67255.0,67252.0,0.1196]
[1729617588050,0.004,67255.0,67251.0,0.19241025]
[1729617588051,0.17,67253.0,67251.0,0.02241025]
[1729617588251,0.48906927,67252.0,67248.0,0.1196]
[1729617588447,0.05384245,67251.0,67248.0,0.1196]
[1729617588658,0.05384245,67250.0,67247.0,0.1196]
[1729617588849,0.074389,67251.0,67246.0,0.1196]
[1729617589051,0.3608,67252.0,67244.0,0.074396]
[1729617589250,0.3608,67252.0,67247.0,0.1196]
[1729617589557,0.3608,67252.0,67244.0,0.074396]
[1729617589558,0.435189,67252.0,67244.0,0.193996]
[1729617589762,0.074389,67251.0,67244.0,0.193996]
[1729617590859,0.074389,67251.0,67244.0,0.1196]
[1729617590860,0.17,67249.0,67244.0,0.1196]
[1729617591045,0.0625,67248.0,67244.0,0.1196]
[1729617591450,0.0625,67248.0,67242.0,0.55431677]
[1729617591661,0.0625,67248.0,67244.0,0.1196]
[1729617591860,0.0625,67248.0,67244.0,0.193996]
[1729617592366,0.0625,67248.0,67244.0,0.074396]
[1729617593160,0.0645,67248.0,67243.0,0.1196]
[1729617593354,0.0645,67248.0,67243.0,0.193997]
[1729617593963,0.310892,67248.0,67243.0,0.1196]
[1729617594853,0.310892,67248.0,67242.0,0.50263677]
[1729617595166,0.2365,67248.0,67242.0,0.50263677]
[1729617596062,0.30885165,67248.0,67242.0,0.50263677]
[1729617596249,0.31085165,67248.0,67242.0,0.50263677]
[1729617596456,0.31085165,67248.0,67243.0,0.05917132]
[1729617596654,0.31085165,67248.0,67242.0,0.56316809]
[1729617596863,0.17,67245.0,67242.0,0.44220809]
[1729617597258,0.17,67245.0,67243.0,0.05917132]
[1729617597455,0.17,67245.0,67242.0,0.38303677]
[1729617597456,0.17,67245.0,67242.0,0.44220809]
[1729617598058,0.17,67245.0,67242.0,0.38303677]
[1729617599154,0.17,67245.0,67243.0,0.001]
[1729617599562,0.17,67245.0,67244.0,0.0046524]
[1729617599968,0.13685165,67248.0,67244.0,0.0046524]
[1729617600167,0.21124465,67248.0,67245.0,0.0046524]
[1729617600366,0.21124465,67248.0,67246.0,0.0046524]
[1729617600562,0.13685165,67248.0,67243.0,0.001]
[1729617600865,0.244395,67245.0,67244.0,0.00565247]
[1729617601169,0.244395,67245.0,67244.0,0.001]
[1729617601170,0.605195,67245.0,67244.0,0.001]
[1729617601559,0.3608,67245.0,67244.0,0.001]
[1729617602261,0.3608,67245.0,67244.0,0.00565269]
[1729617602656,0.3608,67245.0,67244.0,0.00465269]
[1729617603170,0.3608,67245.0,67244.0,0.00565269]
[1729617603767,0.3608,67245.0,67244.0,0.00665269]
[1729617604353,0.3608,67245.0,67244.0,0.08104869]
[1729617605366,0.07435165,67248.0,67247.0,0.074393]
[1729617605564,0.07433838,67260.0,67255.0,0.074383]
[1729617605764,0.07433838,67260.0,67258.0,0.17]
[1729617606069,0.07433838,67260.0,67259.0,0.00465162]
[1729617606863,0.07833838,67260.0,67259.0,0.00465162]
[1729617607265,0.08233838,67260.0,67259.0,0.00465162]
[1729617607666,0.08233838,67260.0,67259.0,0.00465153]
[1729617607866,0.08233838,67260.0,67259.0,0.07903153]
[1729617608862,0.08233838,67260.0,67259.0,0.12339909]
[1729617609265,0.08233838,67260.0,67259.0,0.07903153]
[1729617609464,0.08233838,67260.0,67259.0,0.08647401]
[1729617609768,0.08233838,67260.0,67259.0,0.07903153]
[1729617610269,0.08233838,67260.0,67259.0,0.13820285]
[1729617610467,0.08233838,67260.0,67259.0,0.16813022]
[1729617610671,0.08233838,67260.0,67259.0,0.1089589]
[1729617611280,0.08233838,67260.0,67259.0,0.10895893]
[1729617611667,0.08233838,67260.0,67259.0,0.16813191]
[1729617612976,0.08233838,67260.0,67259.0,0.10895893]
[1729617613563,0.08233838,67260.0,67259.0,0.16813191]
[1729617613965,0.19928804,67260.0,67259.0,0.03457893]
[1729617614271,0.1364359,67260.0,67259.0,0.03457893]
[1729617614474,0.1364359,67260.0,67259.0,0.10151649]
[1729617614878,0.1364359,67260.0,67259.0,0.02713649]
[1729617615774,0.08233838,67260.0,67259.0,0.02713649]
[1729617615968,0.13605421,67260.0,67259.0,0.02713649]
[1729617618080,0.13605421,67260.0,67259.0,0.27151649]
[1729617618383,0.3608,67267.0,67266.0,0.17]
[1729617618680,0.3608,67267.0,67266.0,0.29425152]
[1729617619276,0.00088,67273.0,67266.0,0.74025152]
[1729617619476,0.3608,67280.0,67272.0,0.17]
[1729617619675,0.06199611,67279.0,67277.0,0.17]
[1729617619877,0.3608,67280.0,67277.0,0.17]
[1729617620078,0.06151568,67279.0,67277.0,0.17]
[1729617620277,0.3608,67280.0,67277.0,0.17]
[1729617620875,0.16334014,67300.0,67277.0,0.17]
[1729617620876,0.17,67293.0,67279.0,0.5308]
[1729617621075,0.074347,67290.0,67289.0,0.3608]
[1729617621474,0.244347,67290.0,67289.0,0.3608]
[1729617622372,0.247347,67290.0,67289.0,0.3608]
[1729617622573,0.250347,67290.0,67289.0,0.3608]
[1729617624583,0.003,67290.0,67289.0,0.3608]
[1729617624772,0.19303834,67360.0,67289.0,0.3608]
[1729617624773,0.3608,67313.0,67289.0,0.3608]
[1729617624991,0.0313208,67376.0,67345.0,0.3608]
[1729617625276,0.0313208,67376.0,67373.0,0.3608]
[1729617625477,0.44528,67375.0,67373.0,0.3608]
[1729617625683,1.67,67374.0,67373.0,0.3608]
[1729617625874,2.11528,67374.0,67373.0,0.3608]
[1729617626081,2.71528,67374.0,67373.0,0.3608]
[1729617626279,2.71528,67374.0,67370.0,0.04402348]
[1729617626479,0.44528,67373.0,67366.0,0.04402348]
[1729617626677,1.67,67374.0,67364.0,0.04402348]
[1729617626877,0.17,67366.0,67365.0,0.3608]
[1729617627501,0.17,67371.0,67365.0,0.3608]
[1729617627677,0.17,67371.0,67368.0,0.04371625]
[1729617627875,0.17,67371.0,67367.0,0.04371625]
[1729617628376,0.17,67371.0,67366.0,0.04371625]
[1729617628781,0.173,67371.0,67366.0,0.04371625]
[1729617629085,0.173,67371.0,67365.0,0.3608]
[1729617629286,0.003,67371.0,67368.0,0.074259]
[1729617629477,0.006,67371.0,67368.0,0.074259]
[1729617629679,0.173,67371.0,67368.0,0.074259]
[1729617629879,0.31028,67371.0,67365.0,0.3608]
[1729617630084,0.31028,67371.0,67351.0,0.074277]
[1729617630085,0.17,67366.0,67358.0,0.3608]
[1729617630276,0.17,67359.0,67351.0,0.3608]
[1729617630475,0.17,67352.0,67351.0,0.3608]
[1729617631373,0.80624,67352.0,67346.0,0.01207654]
[1729617631584,0.17,67350.0,67346.0,0.01207654]
[1729617631786,0.3608,67352.0,67347.0,0.17]
[1729617631984,0.3668,67352.0,67351.0,0.074278]
[1729617632575,1.8638,67352.0,67351.0,0.074278]
[1729617632776,0.3638,67352.0,67351.0,0.074278]
[1729617633381,0.3638,67352.0,67351.0,0.334278]
[1729617633586,0.003,67352.0,67351.0,0.334278]
[1729617634184,0.004,67352.0,67351.0,0.080278]
[1729617634585,0.001,67352.0,67351.0,0.081278]
[1729617634889,0.3608,67354.0,67353.0,0.074276]
[1729617635101,0.6208,67354.0,67351.0,0.001]
[1729617635295,0.6208,67354.0,67352.0,0.074277]
[1729617636184,0.3608,67354.0,67352.0,0.074277]
[1729617636582,0.3608,67354.0,67351.0,0.002]
[1729617636788,0.3608,67354.0,67353.0,0.334276]
[1729617636981,1.5008,67360.0,67353.0,0.26]
[1729617637183,0.003,67354.0,67353.0,0.334276]
[1729617637387,0.005,67354.0,67353.0,0.334276]
[1729617637697,0.3608,67371.0,67353.0,0.334276]
[1729617637698,0.17,67427.0,67410.0,0.074213]
[1729617637899,0.17,67427.0,67377.0,0.074249]
[1729617637900,0.3608,67421.0,67398.0,0.3608]
[1729617638194,0.3608,67421.0,67381.0,0.26]
[1729617638195,0.02239803,67430.0,67418.0,0.3608]
[1729617638400,0.6208,67437.0,67418.0,0.3608]
[1729617638401,0.3608,67428.0,67418.0,0.3608]
[1729617638789,0.26,67425.0,67418.0,0.3608]
[1729617639099,0.26,67425.0,67405.0,0.26]
[1729617639100,0.26,67419.0,67403.0,0.3608]
[1729617639299,0.26,67408.0,67403.0,0.3608]
[1729617641493,0.263,67408.0,67403.0,0.3608]
[1729617641694,0.263,67408.0,67395.0,0.3608]
[1729617642187,0.26,67402.0,67395.0,0.3608]
[1729617642900,0.26,67398.0,67395.0,0.3608]
[1729617644098,0.15600776,67398.0,67395.0,0.3608]
[1729617644295,0.15900776,67398.0,67395.0,0.3608]
[1729617644701,0.16200776,67398.0,67395.0,0.3608]
[1729617644999,0.11443932,67398.0,67395.0,0.3618]
[1729617646593,0.11143932,67398.0,67395.0,0.3618]
[1729617646798,0.11443932,67398.0,67395.0,0.3608]
[1729617646996,0.11743932,67398.0,67395.0,0.3608]
[1729617647393,0.11143932,67398.0,67395.0,0.3608]
[1729617647700,0.11743932,67398.0,67395.0,0.3608]
[1729617648097,0.006,67398.0,67395.0,0.3608]
[1729617649292,0.3608,67415.0,67397.0,0.3608]
[1729617649503,0.3608,67415.0,67407.0,0.3608]
[1729617650302,0.26,67416.0,67413.0,0.3608]
[1729617650701,0.26,67421.0,67413.0,0.3608]
[1729617650896,0.003,67415.0,67413.0,0.3608]
[1729617651098,0.005,67415.0,67413.0,0.3608]
[1729617651495,0.26,67421.0,67413.0,0.3608]
[1729617651696,0.005,67416.0,67415.0,0.074208]
[1729617651897,0.00222605,67422.0,67419.0,0.074202]
[1729617652201,0.00222605,67422.0,67421.0,0.3608]
[1729617653503,0.00222605,67422.0,67421.0,0.435001]
[1729617653701,0.26,67432.0,67421.0,0.3608]
[1729617653898,0.26,67432.0,67422.0,0.0742]
[1729617654306,0.26,67427.0,67421.0,0.3608]
[1729617654609,0.002,67422.0,67421.0,0.3608]
[1729617655009,0.26,67427.0,67421.0,0.3608]
[1729617655407,0.334195,67427.0,67421.0,0.3608]
[1729617655909,0.074197,67425.0,67421.0,0.3608]
[1729617656306,0.3342,67422.0,67421.0,0.3608]
[1729617656509,0.004,67432.0,67422.0,0.22122662]
[1729617656703,0.074189,67432.0,67431.0,0.3608]
[1729617657302,0.334189,67432.0,67431.0,0.3608]
[1729617657703,0.002,67432.0,67431.0,0.3608]
[1729617659214,0.26,67437.0,67431.0,0.3608]
[1729617659409,0.002,67432.0,67431.0,0.3608]
[1729617660010,0.002,67432.0,67431.0,0.43499]
[1729617660207,1.50222556,67446.0,67435.0,0.074186]
[1729617660512,1.50222556,67446.0,67443.0,0.3608]
[1729617660708,0.074179,67441.0,67437.0,0.3608]
[1729617660911,1.50222556,67446.0,67440.0,0.07418]
[1729617661208,1.50222556,67446.0,67439.0,0.3608]
[1729617661209,1.57639956,67446.0,67445.0,0.3608]
[1729617661519,1.57639956,67446.0,67424.0,0.074198]
[1729617661520,1.76422556,67446.0,67435.0,0.04358131]
[1729617661729,0.26,67436.0,67432.0,0.3608]
[1729617662014,0.074188,67433.0,67428.0,0.3608]
[1729617662209,0.002,67432.0,67429.0,0.3608]
[1729617662610,0.002,67432.0,67431.0,0.07419]
[1729617662817,0.002,67432.0,67431.0,0.04358131]
[1729617663015,0.26,67441.0,67436.0,0.074184]
[1729617663229,0.26,67441.0,67437.0,0.3608]